bitfinex/quotes_BTCUSD_20251016
["timestamp","ask_amount","ask_price","bid_price","bid_amount"]
[1760632022267,0.12856268,108250.0,108240.0,0.28065457]
[1760632022497,0.18477457,108240.0,108210.0,0.23020149]
[1760632022719,0.71473145,108240.0,108210.0,0.27451084]
[1760632022964,0.72476178,108240.0,108220.0,0.18480872]
[1760632023202,0.21245535,108240.0,108230.0,0.001]
[1760632023427,0.21245535,108240.0,108220.0,0.18480872]
[1760632023666,0.70633679,108230.0,108220.0,0.04246293]
[1760632023920,0.71474852,108230.0,108210.0,0.20116178]
[1760632024200,0.70635387,108220.0,108210.0,0.18482521]
[1760632024422,0.70635387,108220.0,108200.0,0.01839673]
[1760632024423,0.7147656,108220.0,108200.0,0.01839673]
[1760632024650,0.19321595,108220.0,108200.0,0.38880622]
[1760632024818,0.19321595,108220.0,108200.0,0.33744699]
[1760632024819,0.7147611,108220.0,108200.0,0.33744699]
[1760632025022,0.52154515,108210.0,108200.0,0.27452949]
[1760632025225,0.71477818,108210.0,108190.0,0.3270058]
[1760632025426,0.71477818,108210.0,108200.0,0.18484288]
[1760632025427,0.00840723,108210.0,108200.0,0.18484288]
[1760632026266,0.00840723,108210.0,108200.0,0.274533]
[1760632026466,0.53688745,108230.0,108210.0,0.18481428]
[1760632026701,0.70635387,108220.0,108200.0,0.001]
[1760632026908,0.52995593,108220.0,108210.0,0.1848258]
[1760632027121,0.00841078,108220.0,108200.0,0.27556474]
[1760632027323,0.70637095,108210.0,108200.0,0.00104]
[1760632027524,0.69478173,108210.0,108200.0,4e-05]
[1760632027947,0.72478173,108210.0,108200.0,4e-05]
[1760632028154,0.20323658,108210.0,108200.0,4e-05]
[1760632028386,0.72478173,108210.0,108200.0,4e-05]
[1760632028940,0.00841078,108210.0,108200.0,0.18488288]
[1760632029164,0.00841078,108210.0,108200.0,0.22188947]
[1760632029413,0.00841078,108210.0,108200.0,0.22192947]
[1760632029755,0.71478173,108210.0,108200.0,0.03708659]
[1760632029958,0.52995593,108210.0,108200.0,0.18492288]
[1760632030167,0.00841078,108210.0,108200.0,0.18492288]
[1760632030397,0.52995593,108210.0,108200.0,0.18492288]
[1760632030620,0.00841078,108210.0,108200.0,0.274613]
[1760632030886,0.00841078,108210.0,108200.0,0.31079528]
[1760632031099,0.00841078,108210.0,108200.0,1.26202251]
[1760632031301,0.00015092,108230.0,108220.0,0.18480872]
[1760632031503,0.00015092,108230.0,108220.0,0.37033884]
[1760632032749,0.00015092,108230.0,108220.0,5.74652112]
[1760632032951,0.00015092,108230.0,108220.0,5.8362032]
[1760632033485,0.00015092,108230.0,108220.0,0.4962032]
[1760632033700,0.00015092,108230.0,108220.0,0.36418092]
[1760632033916,0.00015092,108230.0,108220.0,0.46002092]
[1760632034640,0.01367575,108270.0,108250.0,0.1847575]
[1760632034868,0.64224811,108270.0,108260.0,0.20129185]
[1760632035099,0.12070296,108270.0,108260.0,0.25939422]
[1760632035328,0.00070296,108270.0,108260.0,0.35523422]
[1760632035573,0.00070296,108270.0,108260.0,0.34320603]
[1760632036491,0.52224811,108270.0,108260.0,0.27443055]
[1760632036721,0.00070296,108270.0,108260.0,0.41997689]
[1760632036947,0.00070296,108270.0,108260.0,0.23527646]
[1760632037170,0.18542633,108270.0,108260.0,0.13943646]
[1760632037389,0.73231378,108270.0,108260.0,4e-05]
[1760632037610,0.9401318,108270.0,108260.0,4e-05]
[1760632037823,1.16277916,108270.0,108260.0,4e-05]
[1760632038477,1.05626852,108270.0,108260.0,4e-05]
[1760632038900,1.30432472,108270.0,108260.0,4e-05]
[1760632039110,0.52479164,108230.0,108220.0,4e-05]
[1760632039346,0.75448176,108230.0,108220.0,4e-05]
[1760632039550,1.27602691,108230.0,108220.0,4e-05]
[1760632039964,1.31220919,108230.0,108220.0,4e-05]
[1760632040374,1.31320919,108230.0,108220.0,0.00054296]
[1760632041040,1.27702691,108230.0,108220.0,0.00054296]
[1760632042416,1.18733679,108230.0,108220.0,0.00054296]
[1760632043047,1.00254515,108230.0,108220.0,0.18535168]
[1760632043268,0.14941398,108230.0,108220.0,0.3708818]
[1760632043479,0.14941398,108230.0,108220.0,0.42645198]
[1760632044547,0.14941398,108230.0,108220.0,0.33061198]
[1760632044751,0.14841398,108230.0,108220.0,0.42645198]
[1760632044961,0.14941398,108230.0,108220.0,0.42645198]
[1760632045361,0.14841398,108230.0,108220.0,0.42645198]
[1760632045739,0.00841398,108230.0,108220.0,0.42645198]
[1760632047503,0.000115,108260.0,108250.0,0.1847575]
[1760632047716,0.000115,108260.0,108250.0,5.6303515]
[1760632047906,0.000115,108260.0,108250.0,5.76237378]
[1760632048416,0.000115,108260.0,108250.0,5.66653378]
[1760632048630,0.000115,108260.0,108250.0,0.76237378]
[1760632048845,0.000115,108260.0,108250.0,0.66753378]
[1760632049063,0.52166015,108260.0,108250.0,0.08969012]
[1760632049281,0.7064011,108260.0,108240.0,0.09584]
[1760632049506,0.70640058,108260.0,108250.0,0.2815975]
[1760632049720,0.000115,108260.0,108250.0,0.2805975]
[1760632049941,0.52166015,108260.0,108250.0,0.1847575]
[1760632050161,0.000115,108260.0,108250.0,0.32050462]
[1760632050589,0.000115,108260.0,108250.0,0.41019474]
[1760632050806,0.000115,108260.0,108250.0,6.30792217]
[1760632050807,1e-08,108260.0,108250.0,6.30792217]
[1760632051263,1e-08,108260.0,108250.0,6.30892217]
[1760632051498,0.0002,108290.0,108250.0,6.30892217]
[1760632051720,0.0002,108290.0,108280.0,0.18470631]
[1760632051950,0.0002,108290.0,108280.0,0.41614692]
[1760632052164,0.0002,108290.0,108280.0,0.39510124]
[1760632052378,0.52174515,108290.0,108280.0,0.04591049]
[1760632052595,0.0002,108290.0,108280.0,0.28054631]
[1760632053048,0.00035085,108290.0,108280.0,0.28054631]
[1760632053700,0.00035085,108290.0,108280.0,0.35821035]
[1760632055174,0.00035085,108290.0,108280.0,5.73439263]
[1760632055579,0.00035085,108290.0,108280.0,5.73539263]
[1760632055856,0.00035085,108290.0,108280.0,6.34661986]
[1760632056505,0.52174515,108340.0,108320.0,0.1846381]
[1760632056721,0.1403508,108340.0,108330.0,0.18843982]
[1760632056938,0.16871486,108340.0,108330.0,0.18462106]
[1760632057167,0.15337256,108340.0,108330.0,0.24009599]
[1760632057382,0.34029712,108340.0,108330.0,0.05547493]
[1760632057605,0.1403508,108340.0,108330.0,0.25542298]
[1760632057790,0.1403508,108340.0,108330.0,0.23108259]
[1760632058206,0.1403508,108340.0,108330.0,0.32077271]
[1760632058683,0.1403508,108340.0,108330.0,0.41657271]
[1760632059538,0.14870831,108340.0,108330.0,0.41657271]
[1760632059744,0.14870831,108340.0,108330.0,0.40455646]
[1760632060806,0.33331233,108340.0,108330.0,0.03444528]
[1760632061028,0.1403508,108340.0,108330.0,0.28038106]
[1760632061236,0.14870087,108340.0,108330.0,0.28038106]
[1760632061859,0.14870087,108340.0,108330.0,0.37007118]
[1760632062073,0.00870087,108340.0,108330.0,0.37007118]
[1760632062970,0.00870087,108340.0,108330.0,0.40625346]
[1760632063187,0.00870087,108340.0,108330.0,6.33368069]
[1760632063402,0.23273933,108350.0,108340.0,5.2207863]
[1760632063668,0.23273933,108350.0,108340.0,5.83202157]
[1760632063871,0.23273933,108350.0,108340.0,5.83237942]
[1760632064081,0.23273933,108350.0,108340.0,5.92813942]
[1760632064293,0.23273933,108350.0,108340.0,5.83237942]
[1760632064503,0.23273933,108350.0,108340.0,5.30983427]
[1760632064715,0.23273933,108350.0,108340.0,0.30983427]
[1760632065137,0.23273933,108350.0,108340.0,0.74559427]
[1760632065320,0.23273933,108350.0,108340.0,5.74659427]
[1760632065565,0.23273933,108350.0,108340.0,6.26631997]
[1760632065778,8.71283384,108360.0,108350.0,6.08049496]
[1760632065989,8.68510434,108360.0,108350.0,6.39808638]
[1760632066199,8.65737484,108360.0,108350.0,6.39808638]
[1760632066416,8.62964534,108360.0,108350.0,6.5207394]
[1760632066629,8.62964534,108360.0,108350.0,5.7731124]
[1760632066845,8.62964534,108360.0,108350.0,6.5207394]
[1760632067266,8.00678839,108360.0,108350.0,6.5207394]
[1760632067476,7.90883889,108360.0,108350.0,6.5207394]
[1760632067686,7.75754556,108360.0,108350.0,6.5207394]
[1760632067889,7.75754556,108360.0,108350.0,6.5217394]
[1760632068099,7.75754556,108360.0,108350.0,6.49384638]
[1760632068305,7.75754556,108360.0,108350.0,6.39808638]
[1760632068510,7.75754556,108360.0,108350.0,5.65145938]
[1760632068720,7.75754556,108360.0,108350.0,6.56455757]
[1760632068721,7.18721093,108360.0,108350.0,6.56455757]
[1760632069121,6.80777889,108360.0,108350.0,6.56559757]
[1760632069330,6.61593902,108360.0,108350.0,6.56559757]
[1760632069535,6.58822118,108360.0,108350.0,6.56559757]
[1760632069745,6.09576388,108360.0,108350.0,6.56459757]
[1760632069955,5.89211255,108360.0,108350.0,6.56459757]
[1760632070162,5.72589236,108360.0,108350.0,6.59153059]
[1760632070373,5.61402015,108360.0,108350.0,6.49581059]
[1760632070582,5.61402015,108360.0,108350.0,6.56463757]
[1760632070938,5.61402015,108360.0,108350.0,6.59153059]
[1760632071356,5.10975708,108360.0,108350.0,6.59063059]
[1760632071582,5.02964031,108360.0,108350.0,6.58963059]
[1760632071936,5.02964031,108360.0,108350.0,6.59163059]
[1760632072158,4.51395327,108360.0,108350.0,6.59163059]
[1760632072383,4.51395327,108360.0,108350.0,6.49591059]
[1760632072625,4.51395327,108360.0,108350.0,5.2744571]
[1760632072848,4.51395327,108360.0,108350.0,6.1178041]
[1760632073070,4.51395327,108360.0,108350.0,6.15398638]
[1760632073274,4.51395327,108360.0,108350.0,5.2744571]
[1760632074014,4.51395327,108360.0,108350.0,0.00208]
[1760632074253,4.51395327,108360.0,108350.0,0.28238698]
[1760632074464,4.51395327,108360.0,108350.0,0.3720771]
[1760632074669,4.51395327,108360.0,108350.0,0.18549012]
[1760632074892,4.51395327,108360.0,108350.0,8e-05]
[1760632075110,4.51395327,108360.0,108350.0,0.28134698]
[1760632075332,4.70682044,108360.0,108350.0,0.09676]
[1760632075543,5.45444744,108360.0,108350.0,0.00108]
[1760632075753,4.70682044,108360.0,108350.0,0.09676]
[1760632075960,5.46444744,108360.0,108350.0,0.00108]
[1760632076186,4.72950834,108360.0,108350.0,0.00108]
[1760632076544,5.47713534,108360.0,108350.0,0.00108]
[1760632076754,5.35713534,108360.0,108350.0,0.00108]
[1760632076957,5.35608892,108360.0,108350.0,0.00108]
[1760632077169,4.40120407,108360.0,108350.0,0.2753571]
[1760632077852,4.40120407,108360.0,108350.0,0.18566698]
[1760632078208,4.40120407,108360.0,108350.0,0.3700371]
[1760632078421,4.40120407,108360.0,108350.0,0.2743571]
[1760632078639,4.40120407,108360.0,108350.0,0.3700371]
[1760632079107,4.40120407,108360.0,108350.0,0.74621938]
[1760632079683,4.15237442,108360.0,108350.0,0.74625938]
[1760632080429,4.15237442,108360.0,108350.0,1.49384638]
[1760632080659,4.15237442,108360.0,108350.0,6.50673563]
[1760632080859,4.15237442,108360.0,108350.0,5.66342863]
[1760632081062,4.15237442,108360.0,108350.0,6.50773563]
[1760632081264,4.15237442,108360.0,108350.0,6.50673563]
[1760632081618,4.15237442,108360.0,108350.0,6.50773563]
[1760632081840,3.50828988,108360.0,108350.0,6.50673563]
[1760632082099,3.50828988,108360.0,108350.0,6.50773563]
[1760632082472,2.92195274,108360.0,108350.0,6.53362865]
[1760632082804,2.68392543,108360.0,108350.0,6.53462865]
[1760632083034,2.35320017,108360.0,108350.0,7.28225565]
[1760632083248,1.82908002,108360.0,108350.0,8.02988265]
[1760632083460,1.67544357,108360.0,108350.0,8.05381509]
[1760632083691,1.0494475,108360.0,108350.0,8.05381509]
[1760632083950,0.08598392,108360.0,108350.0,7.50066409]
[1760632084134,0.0002,108460.0,108410.0,1.5655791]
[1760632084361,0.0002,108460.0,108410.0,5.81840927]
[1760632084362,0.00070246,108420.0,108410.0,5.81840927]
[1760632084561,0.0002,108440.0,108420.0,4.5085104]
[1760632084771,0.00025827,108430.0,108420.0,5.34582752]
[1760632084976,0.00025827,108430.0,108420.0,5.37038799]
[1760632085197,0.00025827,108430.0,108420.0,4.59820052]
[1760632085397,0.00025827,108430.0,108420.0,5.34582752]
[1760632085624,0.00025827,108430.0,108420.0,4.61086636]
[1760632086044,0.00025827,108430.0,108420.0,4.95086636]
[1760632086245,0.00015076,108430.0,108420.0,4.95086636]
[1760632087090,0.00015076,108430.0,108420.0,4.98704864]
[1760632087302,0.00015076,108430.0,108420.0,4.73872688]
[1760632087509,0.74777776,108430.0,108420.0,1.05188388]
[1760632087724,0.93222855,108430.0,108420.0,1.05188388]
[1760632087928,0.74777776,108430.0,108420.0,1.05188388]
[1760632088159,0.93222855,108430.0,108420.0,1.05188388]
[1760632088579,0.93222855,108430.0,108420.0,0.9411792]
[1760632088785,0.18448994,108410.0,108400.0,0.9411792]
[1760632089017,0.18450184,108400.0,108390.0,4.2880222]
[1760632089228,0.747627,108400.0,108390.0,4.37771232]
[1760632089408,0.18448994,108410.0,108400.0,0.9411792]
[1760632089662,0.93211694,108410.0,108400.0,0.9411792]
[1760632090484,0.91989679,108410.0,108400.0,0.92916864]
[1760632091158,0.91989679,108410.0,108400.0,1.02916864]
[1760632091377,0.90941318,108410.0,108400.0,1.02916864]
[1760632091816,0.94145108,108430.0,108410.0,0.92916864]
[1760632092025,0.83777776,108430.0,108410.0,4.27501164]
[1760632092236,0.83777776,108430.0,108420.0,0.92816864]
[1760632092448,1.02222882,108430.0,108410.0,4.27501164]
[1760632092660,0.93209481,108420.0,108410.0,4.27501164]
[1760632092885,0.93209481,108420.0,108410.0,0.92816864]
[1760632093093,0.747627,108420.0,108410.0,0.92816864]
[1760632093332,0.74877776,108430.0,108410.0,1.11265323]
[1760632093553,0.5606671,108410.0,108400.0,0.1]
[1760632093739,1.51798422,108410.0,108400.0,0.1]
[1760632094457,1.51798422,108410.0,108380.0,0.01839673]
[1760632094663,0.93217992,108370.0,108360.0,0.01839673]
[1760632095298,0.18456995,108360.0,108350.0,8e-05]
[1760632095949,0.93219695,108360.0,108350.0,0.00058246]
[1760632096160,0.94061875,108360.0,108350.0,0.00058246]
[1760632096330,0.18458698,108350.0,108310.0,0.01839673]
[1760632096563,0.94063578,108350.0,108330.0,5.0]
[1760632097004,0.93223102,108340.0,108330.0,5.0]
[1760632097209,0.94065427,108340.0,108320.0,5.0]
[1760632097413,0.747627,108330.0,108320.0,5.0]
[1760632097619,0.0084218,108330.0,108320.0,5.0]
[1760632098318,0.03149943,108330.0,108320.0,5.0]
[1760632098728,0.0084218,108330.0,108320.0,5.27432822]
[1760632099973,0.0084218,108330.0,108320.0,5.37000822]
[1760632100388,0.0084218,108330.0,108320.0,5.71000822]
[1760632101014,0.0084218,108330.0,108320.0,6.45763522]
[1760632101188,0.0084218,108330.0,108320.0,0.71000822]
[1760632101958,0.0084218,108330.0,108320.0,5.71000822]
[1760632102370,0.0084218,108330.0,108320.0,6.45763522]
[1760632102574,1e-08,108330.0,108320.0,6.45763522]
[1760632102771,1e-08,108330.0,108320.0,6.6215415]
[1760632103593,1e-08,108330.0,108320.0,5.8739145]
[1760632103968,0.01839673,108390.0,108370.0,0.1845461]
[1760632104177,0.13839673,108390.0,108380.0,0.09568]
[1760632104370,0.93211376,108410.0,108380.0,0.3536996]
[1760632104610,1.061338,108410.0,108380.0,0.1493362]
[1760632104828,0.20756547,108400.0,108380.0,0.15529331]
[1760632105049,0.1937448,108390.0,108360.0,0.01839673]
[1760632105256,0.96446174,108380.0,108360.0,0.20376685]
[1760632105464,0.93217992,108370.0,108340.0,0.20299592]
[1760632105672,0.18456995,108360.0,108350.0,0.08969012]
[1760632105883,0.94140756,108370.0,108350.0,0.09568]
[1760632106315,0.18455579,108370.0,108360.0,0.00092284]
[1760632106519,0.1845414,108380.0,108360.0,0.00092284]
[1760632106932,0.18504386,108380.0,108360.0,0.00092272]
[1760632107349,0.18504386,108380.0,108350.0,0.36995337]
[1760632107566,0.00922253,108430.0,108390.0,0.18451886]
[1760632107785,1.08450818,108430.0,108400.0,0.18549012]
[1760632107997,0.18446793,108420.0,108400.0,0.18549012]
[1760632108209,1.05131893,108420.0,108390.0,0.52451813]
[1760632108457,0.0230606,108410.0,108400.0,0.0958]
[1760632109086,0.20754542,108410.0,108400.0,0.0958]
[1760632109353,0.94511831,108410.0,108400.0,0.09576]
[1760632109555,0.18450184,108400.0,108390.0,0.08969012]
[1760632109766,0.932137,108400.0,108390.0,0.09576]
[1760632109884,0.18451,108400.0,108370.0,0.34]
[1760632110094,0.21681512,108390.0,108360.0,0.01839673]
[1760632110299,0.19375027,108390.0,108370.0,0.09572]
[1760632110506,0.19375027,108390.0,108370.0,0.0837077]
[1760632110775,0.18453589,108380.0,108360.0,0.44808685]
[1760632110902,0.18453589,108380.0,108340.0,0.21223086]
[1760632110903,0.93646408,108380.0,108340.0,0.21223086]
[1760632111126,0.93646408,108380.0,108350.0,0.08969012]
[1760632111127,0.18455632,108370.0,108350.0,0.08969012]
[1760632111331,0.18455632,108370.0,108360.0,0.09572]
[1760632111530,0.90354775,108380.0,108360.0,0.09572]
[1760632111770,0.18456995,108360.0,108350.0,0.08969012]
[1760632112216,0.18456995,108360.0,108340.0,0.01839673]
[1760632112417,0.18456995,108360.0,108350.0,0.09568]
[1760632113004,0.18456995,108360.0,108320.0,0.01839673]
[1760632113005,0.18458698,108350.0,108320.0,0.01839673]
[1760632113206,0.18460402,108340.0,108320.0,0.10808685]
[1760632113377,0.19381632,108350.0,108330.0,0.09568]
[1760632113744,0.18458758,108350.0,108330.0,0.18537012]
[1760632113961,0.19478056,108370.0,108330.0,0.18537012]
[1760632113962,0.00922764,108370.0,108340.0,0.08969012]
[1760632114175,0.4957701,108380.0,108350.0,0.28026322]
[1760632114418,0.46215065,108380.0,108350.0,0.28026322]
[1760632114631,0.31511011,108380.0,108350.0,0.28026617]
[1760632115065,0.32433748,108380.0,108350.0,0.36895629]
[1760632115282,0.32233748,108380.0,108350.0,0.36895629]
[1760632115488,0.13057378,108380.0,108360.0,0.20035999]
[1760632115732,0.13057378,108380.0,108360.0,0.18456845]
[1760632115942,0.31510967,108380.0,108370.0,0.09588]
[1760632116397,0.13057378,108380.0,108370.0,0.09588]
[1760632117079,0.31310967,108380.0,108370.0,0.10176363]
[1760632117327,0.31310967,108380.0,108370.0,0.09588]
[1760632117542,0.18455292,108370.0,108360.0,4e-05]
[1760632117753,0.00842313,108370.0,108360.0,0.09588]
[1760632118173,0.00842313,108370.0,108360.0,4e-05]
[1760632118387,0.19297605,108370.0,108360.0,0.09588]
[1760632118600,0.19297605,108370.0,108360.0,4e-05]
[1760632118813,0.19297605,108370.0,108360.0,0.09584]
[1760632119236,0.00842313,108370.0,108360.0,0.09584]
[1760632119449,0.19297605,108370.0,108360.0,4e-05]
[1760632119695,0.19297605,108370.0,108360.0,0.09584]
[1760632119696,0.00842313,108370.0,108360.0,0.09584]
[1760632119930,0.00842313,108370.0,108360.0,6.46458767]
[1760632120147,0.00942313,108370.0,108360.0,6.49390935]
[1760632120592,0.00842313,108370.0,108360.0,5.4659124]
[1760632120833,0.00942313,108370.0,108360.0,0.71014007]
[1760632121046,0.00842313,108370.0,108360.0,0.61430007]
[1760632121272,0.00842313,108370.0,108360.0,0.71018007]
[1760632121514,0.00942313,108370.0,108360.0,0.71018007]
[1760632121714,0.00842313,108370.0,108360.0,0.18561012]
[1760632121902,0.00942313,108370.0,108360.0,0.18561012]
[1760632122111,0.00945127,108370.0,108360.0,0.37018007]
[1760632122283,0.00945127,108370.0,108360.0,0.18561012]
[1760632122509,0.19400419,108370.0,108340.0,0.18459055]
[1760632122706,0.18457106,108360.0,108350.0,0.18549012]
[1760632122909,0.18459058,108350.0,108320.0,0.95989373]
[1760632123089,0.19303947,108350.0,108330.0,0.18549012]
[1760632123292,0.00845127,108350.0,108340.0,0.0958]
[1760632123501,0.00845127,108350.0,108340.0,0.18549012]
[1760632124187,0.00845127,108350.0,108340.0,0.27429414]
[1760632124397,0.00845127,108350.0,108340.0,0.37009414]
[1760632124580,0.00845127,108350.0,108340.0,6.49390342]
[1760632125273,0.00015065,108380.0,108370.0,0.18455292]
[1760632125487,0.00015065,108380.0,108370.0,0.71000304]
[1760632125907,0.00015065,108380.0,108370.0,0.73332173]
[1760632126746,0.00015065,108380.0,108370.0,0.45300881]
[1760632126954,0.00015065,108380.0,108370.0,0.18541012]
[1760632127145,0.18468654,108380.0,108370.0,0.08969012]
[1760632127385,0.1845547,108370.0,108350.0,0.34]
[1760632127626,0.19391333,108380.0,108360.0,0.18541012]
[1760632128275,0.19391333,108380.0,108370.0,0.09572]
[1760632128477,0.19391333,108380.0,108370.0,0.08370647]
[1760632129287,0.18455292,108370.0,108360.0,0.08969012]
[1760632129523,0.70427138,108370.0,108360.0,0.18537012]
[1760632130172,0.51971846,108370.0,108360.0,0.18537012]
[1760632130380,0.19391717,108380.0,108360.0,0.18537012]
[1760632130588,0.18455292,108370.0,108360.0,0.18537012]
[1760632130802,0.70427138,108370.0,108360.0,0.08969012]
[1760632131004,0.51971846,108370.0,108360.0,0.18541012]
[1760632131208,0.71363563,108380.0,108360.0,0.18541012]
[1760632131410,0.18455292,108370.0,108360.0,0.18541012]
[1760632131629,0.71363563,108380.0,108360.0,0.18541012]
[1760632131846,0.70427138,108370.0,108360.0,0.09572]
[1760632132264,0.00015065,108380.0,108360.0,0.09572]
[1760632132475,0.18455292,108370.0,108360.0,4e-05]
[1760632132685,0.70427138,108370.0,108360.0,0.09572]
[1760632132931,0.70427145,108370.0,108350.0,0.18458672]
[1760632133135,0.70427145,108370.0,108350.0,0.08969012]
[1760632133375,0.70427145,108370.0,108360.0,0.09568]
[1760632133591,0.72427145,108370.0,108350.0,0.18537012]
[1760632134037,0.72527145,108370.0,108350.0,0.18537012]
[1760632134252,0.72427145,108370.0,108350.0,0.18537012]
[1760632134499,0.18456995,108360.0,108350.0,0.08973012]
[1760632134865,0.70527145,108370.0,108350.0,0.08973012]
[1760632134866,0.18456995,108360.0,108350.0,0.18541012]
[1760632135066,0.18456995,108360.0,108350.0,0.08973012]
[1760632135296,0.18456995,108360.0,108350.0,0.09572]
[1760632136117,0.70527145,108370.0,108350.0,0.09572]
[1760632136325,0.75527145,108370.0,108350.0,0.09572]
[1760632136547,0.001,108360.0,108350.0,0.09572]
[1760632136754,0.001,108360.0,108350.0,0.01051106]
[1760632136956,0.18456995,108360.0,108350.0,0.10619106]
[1760632137157,0.18456995,108360.0,108350.0,4e-05]
[1760632137371,0.19303363,108360.0,108350.0,0.09572]
[1760632137790,0.19403363,108360.0,108350.0,0.09572]
[1760632138012,0.19403363,108360.0,108350.0,0.08971242]
[1760632138751,0.1845899,108350.0,108320.0,0.72274938]
[1760632138927,0.00846368,108350.0,108330.0,0.18537012]
[1760632139139,0.00846368,108350.0,108330.0,0.36999028]
[1760632139334,0.00846368,108350.0,108340.0,0.00902781]
[1760632139535,0.00846368,108350.0,108340.0,0.27429414]
[1760632140327,0.00846368,108350.0,108340.0,0.7940126]
[1760632141351,0.00846368,108350.0,108340.0,0.08969012]
[1760632141564,0.19305066,108350.0,108340.0,0.18537012]
[1760632141750,0.00846368,108350.0,108340.0,0.18537012]
[1760632143555,0.00846368,108350.0,108340.0,0.36997414]
[1760632143763,0.00846368,108350.0,108340.0,0.18537012]
[1760632144396,0.19305066,108350.0,108340.0,0.18537012]
[1760632144608,0.00846368,108350.0,108340.0,0.18537012]
[1760632144811,0.00846368,108350.0,108340.0,0.36997414]
[1760632145248,0.00846368,108350.0,108340.0,0.8896926]
[1760632145462,0.00015065,108380.0,108350.0,5.18457906]
[1760632145670,0.32543379,108380.0,108360.0,0.1953011]
[1760632145881,0.30236681,108380.0,108360.0,0.18537012]
[1760632146125,0.30236681,108380.0,108370.0,0.01095668]
[1760632146338,0.18455292,108370.0,108360.0,0.18537012]
[1760632146544,0.00845278,108370.0,108360.0,0.18537012]
[1760632146779,0.1930057,108370.0,108360.0,0.18537012]
[1760632146994,0.1930057,108370.0,108360.0,0.08969012]
[1760632147207,0.18457276,108360.0,108340.0,0.18460157]
[1760632147431,0.19378056,108370.0,108350.0,0.18537012]
[1760632147649,0.20223515,108370.0,108350.0,0.18537012]
[1760632147854,0.70428841,108360.0,108350.0,0.08969012]
[1760632148068,0.712743,108360.0,108340.0,0.09568]
[1760632148274,0.19302454,108360.0,108340.0,0.18537012]
[1760632148447,0.18456995,108360.0,108340.0,0.18537012]
[1760632148674,0.18456995,108360.0,108340.0,0.08969012]
[1760632148867,0.18456995,108360.0,108340.0,0.18537012]
[1760632149073,0.70428841,108360.0,108340.0,0.18537012]
[1760632149326,0.70528841,108360.0,108340.0,0.18537012]
[1760632149533,0.18556995,108360.0,108340.0,0.36997381]
[1760632149743,0.1611176,108360.0,108340.0,0.36997381]
[1760632150031,0.001,108360.0,108350.0,0.0075484]
[1760632150255,0.001,108360.0,108350.0,0.2818255]
[1760632150468,0.001,108360.0,108350.0,0.08969012]
[1760632150677,0.70528841,108360.0,108340.0,0.18460252]
[1760632150890,0.70528841,108360.0,108340.0,0.08969012]
[1760632151096,0.18458698,108350.0,108340.0,0.08969012]
[1760632151306,0.70430544,108350.0,108340.0,0.08969012]
[1760632151513,0.51971846,108350.0,108340.0,0.08969012]
[1760632151921,0.18456995,108360.0,108340.0,0.28315222]
[1760632152133,0.19378121,108370.0,108340.0,0.27429283]
[1760632152332,0.18456995,108360.0,108350.0,0.01774287]
[1760632153166,0.18456077,108370.0,108350.0,0.10743299]
[1760632153379,0.001,108370.0,108360.0,0.27426007]
[1760632154247,0.001,108370.0,108360.0,0.27421007]
[1760632154454,0.00015065,108380.0,108360.0,0.27421007]
[1760632154657,0.18468654,108380.0,108370.0,0.09568]
[1760632154872,0.00015065,108380.0,108370.0,0.18437012]
[1760632155116,0.18468654,108380.0,108370.0,0.08969012]
[1760632155357,0.18468654,108380.0,108370.0,0.18537012]
[1760632155596,0.18468654,108380.0,108370.0,0.08869012]
[1760632155851,0.704405,108380.0,108360.0,0.09572]
[1760632156088,0.18468654,108380.0,108360.0,0.36997906]
[1760632156310,0.18468734,108380.0,108360.0,0.18541012]
[1760632156550,0.18455292,108370.0,108360.0,0.08973012]
[1760632156771,0.18455292,108370.0,108360.0,0.18541012]
[1760632156975,0.18455292,108370.0,108360.0,0.18545012]
[1760632157957,0.68409882,108370.0,108360.0,8e-05]
[1760632158162,0.68409882,108370.0,108360.0,0.00012]
[1760632158366,0.68509882,108370.0,108360.0,0.00012]
[1760632158968,0.16538036,108370.0,108360.0,0.00012]
[1760632159188,0.1823303,108370.0,108360.0,0.00012]
[1760632159402,0.5223303,108370.0,108360.0,0.00012]
[1760632159611,0.50538036,108370.0,108360.0,0.00012]
[1760632159825,1.02509882,108370.0,108360.0,0.00012]
[1760632160279,0.50538036,108370.0,108360.0,0.00012]
[1760632160767,0.18555292,108370.0,108360.0,0.00012]
[1760632160990,1.05527138,108370.0,108360.0,0.00012]
[1760632161266,0.001,108370.0,108360.0,0.00012]
[1760632161494,0.001,108370.0,108360.0,0.28250817]
[1760632161709,0.001,108370.0,108360.0,0.08985012]
[1760632161936,0.001,108370.0,108360.0,0.28231935]
[1760632162143,0.001,108370.0,108360.0,0.27446007]
[1760632162318,0.001,108370.0,108360.0,0.28579091]
[1760632162534,0.51971846,108370.0,108360.0,0.0002]
[1760632162732,0.70441306,108380.0,108360.0,0.0002]
[1760632163080,0.06015065,108380.0,108360.0,0.29134812]
[1760632163292,0.06015065,108380.0,108360.0,0.27445681]
[1760632163505,0.06015065,108380.0,108370.0,0.01589934]
[1760632163679,0.06015065,108380.0,108370.0,0.01489934]
[1760632163912,0.06015065,108380.0,108370.0,0.28914238]
[1760632164118,0.06015065,108380.0,108370.0,0.08969012]
[1760632164332,0.06115065,108380.0,108370.0,0.18537012]
[1760632164543,0.06115065,108380.0,108370.0,0.08969012]
[1760632164750,0.24468654,108380.0,108360.0,0.09588]
[1760632164958,0.06115065,108380.0,108360.0,0.18557012]
[1760632165178,0.18455292,108370.0,108360.0,0.08989012]
[1760632165396,0.18455292,108370.0,108360.0,0.18553012]
[1760632165651,0.56157696,108370.0,108360.0,0.0002]
[1760632165875,1.05427138,108370.0,108360.0,0.0002]
[1760632166096,1.03372022,108370.0,108360.0,0.0002]
[1760632166317,1.12341034,108370.0,108360.0,0.0002]
[1760632167397,0.62424304,108370.0,108360.0,0.0002]
[1760632167621,1.12441034,108370.0,108360.0,0.0002]
[1760632168264,1.19753591,108370.0,108360.0,0.0002]
[1760632169105,1.12441034,108370.0,108360.0,0.0002]
[1760632169344,0.93703256,108370.0,108360.0,0.0002]
[1760632169561,1.15776776,108370.0,108360.0,0.0002]
[1760632169789,1.65693506,108370.0,108360.0,0.0002]
[1760632170009,1.66538298,108370.0,108360.0,0.0002]
[1760632170180,1.20222928,108370.0,108360.0,0.0002]
[1760632170369,1.20122928,108370.0,108360.0,0.0002]
[1760632170582,1.15676776,108370.0,108360.0,0.00024]
[1760632170787,1.15776776,108370.0,108360.0,0.00024]
[1760632171286,1.12158548,108370.0,108360.0,0.00024]
[1760632171522,1.12158548,108370.0,108360.0,0.00028]
[1760632171965,0.69472022,108370.0,108360.0,0.00028]
[1760632172337,1.03472022,108370.0,108360.0,0.00032]
[1760632172549,0.53555292,108370.0,108360.0,0.00032]
[1760632172788,1.03472022,108370.0,108360.0,0.00032]